Cogmind - Beta 10.2 @@@ ROGUE MODE // 2021.09.12 @ 11:35:36 Player: Decker Result: Destroyed by G-34 Mercenary with Small Laser Performance ------------- Evolutions (0) 0 Regions Visited (4) 800 Robots Destroyed (45) 225 Value Destroyed (820) 820 Prototype IDs (23) 460 Alien Tech Used (0) 0 Bonus (314) 314 TOTAL SCORE: 2619 Bonus ------- Follower Combat Kills 14 Aligned with FarCom 300 Cogmind --------- Core Integrity 0/250 Matter 297/300 Energy 96/100 System Corruption 0% Temperature Cool (8) Movement Walking (150) Ox1 Location -9/Mines Parts ------- > --- POWER (1) -------- (None) > --- PROPULSION (2) --- Carbon-fiber Leg Carbon-fiber Leg > --- UTILITY (2) ------ High-capacity Storage Unit Signal Interpreter > --- WEAPON (2) ------- Light Assault Rifle > --- INVENTORY (12) --- Light Ion Engine Aluminum Leg Flying Fortress v7 High-capacity Storage Unit Sensor Array Latent Energy Streamer Beam Cannon Light Assault Rifle Grenade Launcher Peak State ------------ > --- POWER ------------ Light Ion Engine > --- PROPULSION ------- Carbon-fiber Leg Carbon-fiber Leg > --- UTILITY ---------- High-capacity Storage Unit Signal Interpreter > --- WEAPON ----------- Firepult > --- INVENTORY -------- Light Ion Engine Aluminum Leg Flying Fortress v7 High-capacity Storage Unit Sensor Array Signal Interpreter EM Pulse Gun Light Assault Rifle Grenade Launcher [Rating: 33] Favorites ----------- Power Light Ion Engine Engine Light Ion Engine Propulsion Light Treads Treads Light Treads Leg Carbon-fiber Leg Utility High-capacity Storage Unit Device Sensor Array Storage High-capacity Storage Unit Processor Signal Interpreter Weapon EM Pulse Gun Energy Gun EM Pulse Gun Energy Cannon Beam Cannon Ballistic Gun Light Assault Rifle Launcher Grenade Launcher Special Weapon Mining Laser Build | -11 -10 -10 -10 -9 ------- Run | Scr Mat Min Exi Min Slots Evolved . | . . . . . Power . | . . . . . Propulsion . | . . . . . Utility . | . . . . . Weapon . | . . . . . Parts Attached 52 | 5 18 21 7 1 Power 3 | 1 1 1 . . Engine 3 | 1 1 1 . . Core . | . . . . . Reactor . | . . . . . Propulsion 12 | 2 4 4 2 . Treads 3 | . 3 . . . Leg 9 | 2 1 4 2 . Wheel . | . . . . . Hover . | . . . . . Flight . | . . . . . Utility 5 | . 4 . 1 . Device 1 | . 1 . . . Storage 3 | . 2 . 1 . Processor 1 | . 1 . . . Hackware . | . . . . . Protection . | . . . . . Artifact . | . . . . . Weapon 32 | 2 9 16 4 1 Energy Gun 8 | 2 2 4 . . Energy Cannon 7 | . 2 1 3 1 Ballistic Gun 9 | . 2 6 1 . Ballistic Cannon . | . . . . . Launcher 7 | . 3 4 . . Special Weapon 1 | . . 1 . . Impact Weapon . | . . . . . Slashing Weapon . | . . . . . Piercing Weapon . | . . . . . Special Melee Weapon . | . . . . . Unidentified Prototypes 1 | . . . 1 . Parts Lost 6 | . 1 3 . 2 Power 2 | . 1 . . 1 Propulsion 1 | . . 1 . . Utility . | . . . . . Weapon 3 | . . 2 . 1 Highest Loss Streak 2 | . 1 1 . 2 Average Slot Usage (%) 97 | . 95 99 97 85 Engine 13 | . 13 14 14 5 Treads 11 | . 13 20 . . Leg 15 | . 14 7 27 28 Storage 13 | . 13 14 14 14 Processor 12 | . 9 14 14 14 Energy Gun 11 | . 21 12 . . Energy Cannon 5 | . . 4 14 8 Ballistic Gun 9 | . 4 10 12 14 Naked Turns . | . . . . . Heaviest Build 71 | 6 71 42 48 39 Greatest Support 40 | 20 40 40 30 30 Greatest Overweight (x) 12 | . 3 1 12 1 Average Overweight (x) . | . 1 . 1 1 Largest Inventory Capacity 20 | 4 20 12 12 12 Average Capacity 11 | 4 11 12 12 12 Most Carried 12 | 4 12 12 12 12 Average Carried 11 | 2 10 11 11 12 Final Capacity 12 | 4 12 12 12 12 Final Carried 12 | 4 12 12 12 12 Class Distribution -------------------- 54% | Mutant 43% | Scavenger-Mutant Dominant Class ---------------- Mutant | -10/Materials Mutant | -10/Mines Scavenger-Mutant | -10/Exiles Scavenger-Mutant | -9/Mines Resources | -11 -10 -10 -10 -9 ----------- Run | Scr Mat Min Exi Min Matter Collected 969 | 250 255 392 72 . Remotely . | . . . . . Salvage Created 1160 | 41 797 322 . . Parts 83 | 3 47 33 . . Haulers Intercepted 1 | . 1 . . . Recyclers Shooed 4 | . 2 2 . . Parts Field Recycled . | . . . . . Retrieved Matter . | . . . . . Parts Self-Destructed . | . . . . . Prevented . | . . . . . Kills | -11 -10 -10 -10 -9 ------- Run | Scr Mat Min Exi Min Combat Hostiles Destroyed 28 | 1 12 15 . . Guns 13 | 1 8 4 . . Cannons 2 | . 1 1 . . AOE 13 | . 3 10 . . Classes Destroyed 9 | 1 6 2 . . Worker 5 | . 1 4 . . Builder 1 | . . 1 . . Tunneler 1 | . . 1 . . Hauler 1 | . 1 . . . Recycler 4 | . 3 1 . . Operator 2 | . 2 . . . Watcher 3 | . 3 . . . Swarmer 16 | . 3 13 . . Grunt 12 | 1 9 2 . . Best Kill Streak 5 | 1 4 5 . . Combat Bots Only 4 | 1 4 3 . . Max Kills in Single Turn 2 | 1 2 2 . . Gunslinging . | . . . . . Exploded 2 | . 2 2 . . Melee . | . . . . . Uniques/NPCs Destroyed . | . . . . . Combat | -11 -10 -10 -10 -9 -------- Run | Scr Mat Min Exi Min Damage Taken 1202 | 12 413 438 . 339 Core 257 | 12 68 39 . 138 Absorbed by Shields . | . . . . . Core Remaining (%) 95 | 95 . . . . Volleys Fired 123 | 2 73 44 1 3 Largest 2 | 2 2 2 2 2 Hottest 100 | 90 100 100 80 80 Shots Fired 216 | 4 136 68 2 6 Gun 168 | 4 118 42 1 3 Cannon 24 | . 13 7 1 3 Launcher 23 | . 5 18 . . Special 1 | . . 1 . . Kinetic 52 | . 30 18 1 3 Thermal 37 | 4 21 8 1 3 Explosive 23 | . 5 18 . . Electromagnetic 104 | . 80 24 . . Robot Hit Streak 17 | 3 17 10 . 3 Robot Miss Streak 4 | . 4 3 . 1 Penetration Max . | . . . . . Secondary Targets 1 | . 1 . . . Max Gunslinging Chain 1 | . 1 . . . Shots Hit Robots 115 | 3 75 32 . 5 Core Hits 71 | 2 36 31 . 2 Critical Hits 1 | . 1 . . . Critical Kills 1 | . 1 . . . Critical Parts Destroyed . | . . . . . Melee Attacks . | . . . . . Impact . | . . . . . Slashing . | . . . . . Piercing . | . . . . . Sneak Attacks . | . . . . . Combat Hostiles . | . . . . . Follow-up Attacks . | . . . . . Damage Inflicted 2412 | 34 1279 1045 . 54 Guns 1087 | 34 764 270 . 19 Cannons 296 | . 209 52 . 35 Explosions 1029 | . 306 723 . . Melee . | . . . . . Ramming . | . . . . . Kinetic 265 | . 168 78 . 19 Thermal 419 | 34 245 105 . 35 Explosive 976 | . 306 670 . . Electromagnetic 752 | . 560 192 . . Impact . | . . . . . Slashing . | . . . . . Piercing . | . . . . . Highest Corruption . | . . . . . Average Corruption . | . . . . . Corruption Purged . | . . . . . Overload Shots . | . . . . . Overflow Damage 19 | . . 19 . . Projectiles . | . . . . . Explosions 19 | . . 19 . . Melee . | . . . . . Knockbacks . | . . . . . Impact . | . . . . . Kinetic . | . . . . . Secondary . | . . . . . Self-Inflicted Damage 136 | . . 136 . . Shots 5 | . . 5 . . Rammed . | . . . . . Targets Rammed . | . . . . . Kicked . | . . . . . Crushed . | . . . . . Highest Temperature 303 | 66 303 100 40 78 Average Temperature 60 | 36 76 29 20 34 Received Heat Transfer 312 | 6 174 72 . 60 Siege Activations . | . . . . . Robots Corrupted . | . . . . . Combat Hostiles . | . . . . . Parts Fried . | . . . . . Impact Corruptions . | . . . . . Robots Melted . | . . . . . Combat Hostiles . | . . . . . Parts Melted . | . . . . . Heat Transferred 927 | 87 555 211 . 74 Parts Sabotaged . | . . . . . Parts Stolen . | . . . . . Parts Stripped . | . . . . . Power Chain Reactions 2 | . . 2 . . Missiles Intercepted . | . . . . . Alert | -11 -10 -10 -10 -9 ------- Run | Scr Mat Min Exi Min Peak Influence 313 | 20 212 313 . . Initial 13 | . 13 13 . . Average 86 | 2 57 123 . . Maximum Alert Level 1 | . 1 1 . . Low Security (%) 83 | 100 94 71 . 100 Level 1 16 | . 5 28 . . Level 2 . | . . . . . Level 3 . | . . . . . Level 4 . | . . . . . Level 5 . | . . . . . High Security . | . . . . . Max Security . | . . . . . Squads Dispatched 4 | . 4 . . . Investigation 1 | . 1 . . . Extermination . | . . . . . Reinforcement 3 | . 3 . . . Assault . | . . . . . Garrison . | . . . . . Intercept . | . . . . . Construction Impeded . | . . . . . Haulers Reinforced . | . . . . . Stealth | -11 -10 -10 -10 -9 --------- Run | Scr Mat Min Exi Min Distress Signals 1 | . 1 . . . Communications Jammed . | . . . . . Distress Signals . | . . . . . Times Spotted 42 | 1 24 15 . 2 Peak Tracking Total 4 | 1 4 3 . 2 Tactical Retreats 1 | . 1 . . . Traps | -11 -10 -10 -10 -9 ------- Run | Scr Mat Min Exi Min Traps Triggered 1 | . 1 . . . Indirectly . | . . . . . Trap Hack Attempts . | . . . . . Triggered . | . . . . . Disarmed . | . . . . . Reprogrammed . | . . . . . Reused . | . . . . . Traps Extracted . | . . . . . Installed . | . . . . . Triggered 1 | . . 1 . . Machines | -11 -10 -10 -10 -9 ---------- Run | Scr Mat Min Exi Min Machines Disabled 11 | . 7 3 1 . Max in Single Turn 1 | . 1 1 1 . Machines Sabotaged . | . . . . . Garrisons Compromised . | . . . . . Overloaded Fab Kills . | . . . . . Fab Network Shutdowns . | . . . . . Hacking | -11 -10 -10 -10 -9 --------- Run | Scr Mat Min Exi Min Machines Accessed 13 | . 8 . 5 . Terminals 5 | . 5 . . . Fabricators . | . . . . . Repair Stations 1 | . 1 . . . Recycling Units 2 | . 2 . . . Scanalyzers . | . . . . . Garrison Access . | . . . . . Total Hacks 73 | . 23 . 50 . Successful 65 | . 15 . 50 . Failed 8 | . 8 . . . Catastrophic 2 | . 2 . . . Database Lockouts . | . . . . . Manual 14 | . 10 . 4 . Terminals 18 | . 18 . . . Fabricators . | . . . . . Repair Stations 3 | . 3 . . . Recycling Units 2 | . 2 . . . Scanalyzers . | . . . . . Garrison Access . | . . . . . Terminal Hacks 61 | . 11 . 50 . Record 51 | . 2 . 49 . Part Schematic 3 | . 3 . . . Terminal Index 1 | . 1 . . . Unreport Threat 3 | . 3 . . . Hauler Manifests 1 | . 1 . . . Zone Layout 1 | . 1 . . . EX-Prototype ID Bank 1 | . . . 1 . Fabricator Hacks . | . . . . . Repair Station Hacks 2 | . 2 . . . Scan Component 1 | . 1 . . . Repair 1 | . 1 . . . Recycling Unit Hacks 2 | . 2 . . . Report Inventory 2 | . 2 . . . Scanalyzer . | . . . . . Garrison Access Hacks . | . . . . . Unauthorized Hacks . | . . . . . Terminals . | . . . . . Fabricators . | . . . . . Repair Stations . | . . . . . Recycling Units . | . . . . . Scanalyzers . | . . . . . Garrison Access . | . . . . . Data Cores Recovered . | . . . . . Used . | . . . . . Hacking Detections 6 | . 6 . . . Full Trace Events . | . . . . . Feedback Events . | . . . . . Feedback Blocked . | . . . . . Robot Schematics Acquired . | . . . . . Robots Built . | . . . . . Matter . | . . . . . Time . | . . . . . Total Robot Build Rating . | . . . . . Part Schematics Acquired 3 | . 3 . . . Parts Built . | . . . . . Matter . | . . . . . Time . | . . . . . Total Part Build Rating . | . . . . . Parts Repaired 1 | . 1 . . . Time 26 | . 26 . . . Parts Recycled . | . . . . . Recycled Matter . | . . . . . Retrieved Matter . | . . . . . Retrieved Components . | . . . . . Parts Scanalyzed . | . . . . . Part Schematics Acquired . | . . . . . Parts Damaged . | . . . . . Bothacking | -11 -10 -10 -10 -9 ------------ Run | Scr Mat Min Exi Min Used RIF Installer . | . . . . . Robots Hacked . | . . . . . Non-combat . | . . . . . Combat . | . . . . . Robot Hacks Applied . | . . . . . Relay Couplers Released . | . . . . . Robots Rewired . | . . . . . Allies Hacked . | . . . . . Hacks Repelled . | . . . . . Allies | -11 -10 -10 -10 -9 -------- Run | Scr Mat Min Exi Min Total Allies 1 | . . 1 . . Largest Group 1 | . . 1 . . Highest-Rated Group 31 | . . 31 . . Highest-Rated Ally 31 | . . 31 . . Total Orders . | . . . . . Ally Attacks 10 | . . 10 . . Total Damage 172 | . . 172 . . Kills 2 | . . 2 . . Allies Corrupted . | . . . . . Allies Melted . | . . . . . Intel | -11 -10 -10 -10 -9 ------- Run | Scr Mat Min Exi Min Robot Analysis Total . | . . . . . Derelict Logs Recovered 2 | . . 2 . . Drone Launches . | . . . . . Drone Recoveries . | . . . . . Exploration | -11 -10 -10 -10 -9 ------------- Run | Scr Mat Min Exi Min Turns Passed 4178 | 88 1404 1434 1198 54 Spaces Moved 2290 | 68 644 767 781 30 Core 18 | 17 . . 1 . Treads 923 | . 403 520 . . Legs 1349 | 51 241 247 780 30 Wheels . | . . . . . Hover . | . . . . . Flight . | . . . . . Fastest Speed 50 | 50 120 150 150 150 Average Speed 159 | 102 171 164 150 150 Slowest Speed 650 | 120 210 180 650 150 Overloaded Moves . | . . . . . Propulsion Burnouts . | . . . . . Robots Hopped . | . . . . . Cave-ins Triggered . | . . . . . Exploration Rate (%) 57 | 5 98 98 75 13 Regions Visited 4 Branch Regions 3 Pre-discovered Areas 1 | . . . 1 . Known Exits Taken 3 | . 1 1 1 . Unknown Exits Taken 1 | 1 . . . . Scrap Searched 1 | . . 1 . . Spaces Dug 1 | . . 1 . . Terrain Destroyed 128 | . 30 98 . . Melee . | . . . . . Projectile 1 | . . 1 . . AOE 127 | . 30 97 . . Terrain Rammed . | . . . . . Walls Destroyed . | . . . . . Machines Disabled . | . . . . . Actions | -11 -10 -10 -10 -9 --------- Run | Scr Mat Min Exi Min Total 2604 | 80 812 874 804 34 Wait 81 | . 52 29 . . Move 2286 | 67 643 766 780 30 Hop . | . . . . . Pick Up 27 | 5 12 6 4 . Fast Attach 19 | 5 9 1 4 . Attach 8 | . 1 6 1 . Detach 5 | . 4 1 . . Swap 25 | . 8 14 2 1 Drop 30 | 1 10 7 12 . Fire 123 | 2 73 44 1 3 Melee . | . . . . . Ram . | . . . . . Kick . | . . . . . Crush . | . . . . . Escape Stasis . | . . . . . Rewire . | . . . . . Trap . | . . . . . Miscellaneous . | . . . . . Route ------- -11/Scrapyard -10/Materials (discovered 4 exits: *Mat x3 / *Min) -10/Mines (discovered 3 exits: *Mat x2 / *Exi) -10/Exiles (discovered 2 exits: *Min x2) -9/Mines (discovered 1 exit: [*Mat]) History --------- Turn | Location | Event 2 | -11/Scrapyard | Met Revision 17 68 | -11/Scrapyard | Discovered new exit (range 8) 89 | -11/Scrapyard | Entered Materials 319 | -10/Materials | Discovered new exit (range 12) 445 | -10/Materials | Discovered new exit (range 9) 511 | -10/Materials | Identified exit to Mines 616 | -10/Materials | Discovered new exit (range 15) 659 | -10/Materials | Build established: Mutant 679 | -10/Materials | Identified exit to Materials 960 | -10/Materials | Discovered exit to Materials (range 10) 1080 | -10/Materials | Repaired Lgt. Treads 1493 | -10/Materials | Entered Mines 1636 | -10/Mines | Discovered exit to Materials (range 12) 2032 | -10/Mines | Learned 4 Materials zone layouts 2097 | -10/Mines | Discovered exit to Materials (range 14) 2222 | -10/Mines | Deemed a non-threat by the Exiles lab entrance 2222 | -10/Mines | Discovered new exit (range 5) 2227 | -10/Mines | Identified exit to Exiles 2443 | -10/Mines | Received a Mining Laser from a helpful Derelict 2834 | -10/Mines | Build established: Scavenger-Mutant 2927 | -10/Mines | Entered Exiles 2960 | -10/Exiles | Discovered new exit (range 15) 2984 | -10/Exiles | Identified exit to Mines 3016 | -10/Exiles | Met 8R-AWN 3046 | -10/Exiles | Met EX-HEX 3172 | -10/Exiles | Met EX-DEC 3259 | -10/Exiles | Met EX-BIN 3280 | -10/Exiles | Aligned with FarCom system 3281 | -10/Exiles | Given EX-Vault access code 3359 | -10/Exiles | Opened EX-Vault 3384 | -10/Exiles | Found Prototype Flight Unit 3388 | -10/Exiles | Found Prototype Energy Cannon 3388 | -10/Exiles | Identified Firepult 3394 | -10/Exiles | Identified Flying Fortress v7 3396 | -10/Exiles | Found Latent Energy Streamer 3494 | -10/Exiles | Warned to stay clear of 0b10 Research branches 3666 | -10/Exiles | Learned location of Zion (-7) 3774 | -10/Exiles | Discovered exit to Mines (range 14) 4125 | -10/Exiles | Stole two prototypes: Flying Fortress v7, Latent Energy Streamer 4125 | -10/Exiles | Entered Mines 4128 | -9/Mines | Core integrity fell below 50% 4141 | -9/Mines | Core integrity fell below 20% 4150 | -9/Mines | Discovered new exit (range 13) 4179 | -9/Mines | Destroyed by G-34 Mercenary with Small Laser Last Messages --------------- I just repaired it not long ago, I think someone on the outside is tampering with our system. --AM-PHS >>Record! "MSG004964-01" Who left my Assembled plushie in the Analyzer again?! I'm not erasing this message until I get an answer. --BIN 03744_ Extracted 60 matter. 03774_ EXIT=FOUND: MINES 03827_ Extracted 4 energy. LOCATION=MINES GOAL=ESCAPE 04125_ Receiving FarCom transmissions... 04126_ C-30 ARC bursts open, deploying its payload. 04126_ L-31 Rogue unfolds itself. 04126_ G-34 Mercenary unfolds itself. 04149_ Lgt. Ion Engine destroyed. 04150_ EXIT=FOUND 04151_ K-01 Serf collects debris. 04155_ Beam Cannon destroyed. 04159_ K-01 Serf collects debris. [Achievement: I Think I Know What's Going On] Map ----- +----------------------------------------------------+ | ?????????????????????????????????????????????????? | | ?????????????????????????????????????????????????? | | ?????????????????????????????????????????????????? | | ?????????????????????????????????????????????????? | | ?????????????????????????????????????????????????? | | ?????????????????????????????????????????????????? | | ?????????????????????????????????????????????????? | | ?????????????????????????????????????????????????? | | ????????????????????????????????####?????????????? | | ???????????????????????????????# ??????????????? | | ???????????????????????????????# ??????????????? | | ???????????????????????????????# #??????????????? | | ???????????????????????????????# #??#???????????? | | ???????????????????????????????# # #???????????? | | ???????????????????????????????# # ##### ????? | | ??????????????????????????###### # ???? | | ??????????????????????????# ???????? | | ??????????????????????????# ##????????????? | | ??????????????????????????## ###??????????? | | ???????????????????????????### """ ##?????????? | | ??????????????????##?????????## """ #?????????? | | ?????????????????## ??#####??# """ #?????????? | | ????????????????## $ ## #### ########### | | ?????????????#### g # | | ?????????? #### #### | | ?????????? < @l##??## ##??# " | | ??????????????######## ##????## ###??# "%# | | ?????????????????????## ##??????####???# #### | | ??????????????????????###???????????????# ##??? | | ????????????????????????????????????????## ##???? | | ?????????????????????????????????????????###?????? | | ?????????????????????????????????????????????????? | | ?????????????????????????????????????????????????? | | | | | | | | | | | | | | | | | | | | | | | | | | | | | | | | | | | +----------------------------------------------------+ Best States ------------- Heat Dissipation 25 Energy Generation 10 Energy Capacity 250 Matter Stores 300 Matter Capacity 300 Sight Range 16 Robot Scan Range 10 Terrain Scan Density 10 Evasion (%) 50 Recoil Reduction 2 Item Schematics ----------------- Hcp. Storage Unit | -10/Materials | Hacked Sensor Array | -10/Materials | Hacked Signal Interpreter | -10/Materials | Hacked Robot Schematics ------------------ None Fabricated ------------ Nothing Alien Tech Used ----------------- None Achievements -------------- I Think I Know What's Going On Let's See Who's Tougher root@ Challenges ------------ None Game ------ Seed TeslaChromaticSuperbattery Manual? 0 Play Time 00:48:48 Cumulative 15.5 hours Start 2021.09.12 @ 10:32:35 End 2021.09.12 @ 11:35:36 Sessions 1 Manual Loads 0 Difficulty Rogue Special Mode None Game No. 152 Rogue 152 Adventurer 0 Explorer 0 Win Type - Total 0 Types 0/0/0/0/0/0/0/0/0 Lore% 51 Gallery% 67 Achievement% 26 Wizard Run 0 Options --------- ASCII 0 Keyboard 1 Movement Numpad Keybinds 0 Fullscreen 1 Font 20/SmallcapsGlow Map View 66x50 Tactical HUD 1 Map Filters NONE Filters NONE Steam 0 RUN: da853722-846f-444f-8c09-ea2042a5d3b9